bitfinex-derivatives/quotes_ETHF0:USTF0_20250701
["timestamp","ask_amount","ask_price","bid_price","bid_amount"]
[1751401157610,2.46205638,2408.8,2408.7,0.8302]
[1751401157799,3.70392008,2408.8,2408.7,26.8272]
[1751401158006,1.2418637,2408.8,2408.7,26.8272]
[1751401158202,1.2418637,2408.8,2408.7,28.881]
[1751401158402,1.2418637,2408.8,2408.7,40.969]
[1751401159114,0.83005,2409.2,2408.7,40.1388]
[1751401159312,0.83005,2409.2,2409.1,0.83006]
[1751401159702,8.15338685,2409.5,2409.0,0.83008]
[1751401159913,0.83005,2409.2,2409.0,0.83008]
[1751401160113,0.83006,2409.1,2409.0,0.83008]
[1751401160804,0.83006,2409.1,2409.0,0.7516]
[1751401161013,0.83017,2408.8,2408.7,0.7177]
[1751401161210,0.83017,2408.8,2408.7,38.7937]
[1751401161406,0.83017,2408.8,2408.7,38.7927]
[1751401162906,0.83017,2408.8,2408.7,0.7177]
[1751401163213,0.83031,2408.4,2408.3,0.83031]
[1751401163403,0.83031,2408.4,2408.3,38.068]
[1751401164208,0.83031,2408.4,2408.3,12.086]
[1751401164414,0.83031,2408.4,2408.3,38.068]
[1751401166218,0.83037,2408.2,2408.1,13.6014]
[1751401166413,0.83037,2408.2,2408.1,39.5794]
[1751401166813,0.83037,2408.2,2408.1,40.40981]
[1751401167016,0.83037,2408.2,2408.1,39.5794]
[1751401167708,0.83037,2408.2,2408.1,12.086]
[1751401167913,0.83044,2408.0,2407.9,0.83046]
[1751401168113,0.83048,2407.9,2407.8,72.01693685]
[1751401168318,0.83048,2407.9,2407.8,5.24093685]
[1751401168517,0.83048,2407.9,2407.8,31.21593685]
[1751401168708,0.83048,2407.9,2407.8,5.24093685]
[1751401168912,2.07584,2408.4,2407.8,30.38544685]
[1751401169112,0.83041,2408.2,2408.1,0.83038]
[1751401169515,0.83041,2408.2,2408.1,1.58008]
[1751401171118,0.83041,2408.2,2408.1,2.30748]
[1751401171319,0.83041,2408.2,2408.1,1.4771]
[1751401171519,0.83041,2408.2,2408.1,2.9333]
[1751401172122,0.83041,2408.2,2408.1,3.76371]
[1751401172711,2.07571,2408.5,2408.1,3.76371]
[1751401172911,0.83027,2408.5,2408.4,3.09074685]
[1751401173123,0.83027,2408.5,2408.4,29.05874685]
[1751401173323,0.83026,2408.6,2408.4,29.05874685]
[1751401173511,0.83027,2408.5,2408.4,29.05874685]
[1751401174013,0.83027,2408.5,2408.4,3.09074685]
[1751401174218,0.83027,2408.5,2408.4,38.053]
[1751401175027,0.83027,2408.5,2408.4,38.88331]
[1751401175225,0.83027,2408.5,2408.4,38.053]
[1751401176928,0.83027,2408.5,2408.4,38.88331]
[1751401177324,0.83027,2408.5,2408.4,38.053]
[1751401178918,0.83037,2408.2,2408.1,2.36198]
[1751401179117,0.83037,2408.2,2408.1,28.32098]
[1751401179318,0.83037,2408.2,2408.1,26.7077]
[1751401179520,0.83041,2408.1,2408.0,12.085]
[1751401179727,0.83041,2408.1,2408.0,38.042]
[1751401180227,0.83041,2408.1,2408.0,12.085]
[1751401180428,0.83041,2408.1,2408.0,38.041]
[1751401180630,0.83048,2407.9,2407.8,13.69001]
[1751401180924,0.83048,2407.9,2407.8,39.64601]
[1751401181124,0.83048,2407.9,2407.8,41.10081]
[1751401181325,0.83048,2407.9,2407.8,15.14481]
[1751401181524,0.83048,2407.9,2407.8,41.09981]
[1751401182222,0.83048,2407.9,2407.8,12.8595]
[1751401182428,0.83048,2407.9,2407.8,38.8135]
[1751401183428,0.83048,2407.9,2407.8,38.8125]
[1751401184628,0.83048,2407.9,2407.8,42.135]
[1751401186223,0.83048,2407.9,2407.8,42.96551]
[1751401186928,0.83048,2407.9,2407.8,16.182]
[1751401187129,0.83048,2407.9,2407.8,42.131]
[1751401188726,0.83048,2407.9,2407.8,42.96151]
[1751401189425,0.83047,2408.0,2407.9,0.83043]
[1751401189627,0.83043,2408.1,2408.0,3.92114685]
[1751401189929,0.83043,2408.1,2408.0,26.77544]
[1751401192734,0.83043,2408.1,2408.0,29.86618685]
[1751401193234,0.83041,2408.2,2408.1,0.83036]
[1751401193435,0.83041,2408.2,2408.1,28.09036]
[1751401197839,0.83036,2408.3,2408.2,0.83031]
[1751401198039,0.8303,2408.5,2408.4,0.83025]
[1751401198241,0.8303,2408.5,2408.4,29.85499685]
[1751401199346,0.8303,2408.5,2408.4,29.02474685]
[1751401199540,0.8303,2408.5,2408.4,25.934]
[1751401199941,2.0756,2408.6,2408.0,2.07611]
[1751401200246,0.83037,2408.3,2408.2,1.57733]
[1751401202047,0.83037,2408.3,2408.2,4.66807685]
[1751401202246,0.83033,2408.4,2408.3,0.83029]
[1751401202447,0.83033,2408.4,2408.3,28.19419]
[1751401202850,3.09074685,2409.2,2408.5,2.07568]
[1751401203038,3.09074685,2409.2,2408.8,0.83014]
[1751401203039,0.83019,2408.9,2408.8,0.83014]
[1751401203242,0.83013,2409.0,2408.9,0.83008]
[1751401203642,0.83013,2408.9,2408.8,26.75614]
[1751401204845,3.28354476,2408.9,2408.8,26.75614]
[1751401205053,2.05946923,2408.9,2408.8,26.75614]
[1751401205738,2.05946923,2408.9,2408.8,25.926]
[1751401206449,0.83017,2408.8,2408.7,0.83017]
[1751401206748,0.83017,2408.8,2408.7,38.81417]
[1751401208349,0.83017,2408.8,2408.7,37.984]
[1751401208747,0.8302,2408.7,2408.6,1.59222]
[1751401208952,0.8302,2408.7,2408.6,39.57122]
[1751401209146,0.8302,2408.7,2408.6,39.57022]
[1751401211154,0.8302,2408.7,2408.6,41.02732]
[1751401213161,0.8302,2408.7,2408.6,39.57022]
[1751401214064,0.8302,2408.7,2408.6,41.00892]
[1751401214252,0.83019,2408.8,2408.7,0.83015]
[1751401214458,0.83015,2409.0,2408.9,0.83008]
[1751401214659,0.8301,2409.0,2408.9,29.82987685]
[1751401214857,2.05628783,2409.0,2408.9,29.82987685]
[1751401215156,2.05628783,2409.0,2408.9,26.73913]
[1751401216057,1.22618783,2409.0,2408.9,29.82987685]
[1751401217563,1.22618783,2409.0,2408.9,26.73913]
[1751401217762,2.05628783,2409.0,2408.9,26.73913]
[1751401218266,2.05628783,2409.0,2408.9,29.82987685]
[1751401218267,1.22618783,2409.0,2408.9,29.82987685]
[1751401218963,2.05628783,2409.0,2408.9,38.77513]
[1751401220463,2.05628783,2409.0,2408.9,37.945]
[1751401220765,2.05628783,2409.0,2408.9,38.77513]
[1751401221064,0.83017,2408.9,2408.8,0.83015]
[1751401221264,2.05635783,2408.9,2408.8,38.77415]
[1751401222163,0.83017,2408.9,2408.8,38.77415]
[1751401224562,0.83017,2408.9,2408.8,37.944]
[1751401224761,0.83017,2408.9,2408.8,38.77417]
[1751401224961,5.16605685,2409.0,2408.6,0.762]
[1751401225161,5.16605685,2409.0,2408.6,1.59223]
[1751401225162,0.8302,2408.7,2408.6,1.59223]
[1751401225357,0.8302,2408.7,2408.6,39.52723]
[1751401227865,0.8302,2408.7,2408.6,39.52423]
[1751401229567,2.05900724,2408.7,2408.6,39.52423]
[1751401232268,2.05900724,2408.7,2408.6,27.47623]
[1751401232569,0.83024,2408.6,2408.5,12.87225]
[1751401232769,2.05904724,2408.6,2408.5,37.926]
[1751401233968,0.83027,2408.5,2408.4,1.53419]
[1751401234166,2.05907724,2408.5,2408.4,12.7469]
[1751401234472,2.05907724,2408.5,2408.4,37.924]
[1751401235967,1.22880724,2408.5,2408.4,38.75431]
[1751401236171,0.83025,2408.7,2408.6,0.8302]
[1751401236378,2.05889012,2408.7,2408.6,26.7092]
[1751401236876,1.22864012,2408.7,2408.6,29.4975]
[1751401238375,2.45341476,2409.3,2408.7,2.07549]
[1751401238575,3.28346476,2409.2,2409.1,3.92077685]
[1751401238872,3.28346476,2409.2,2409.1,29.79877685]
[1751401239770,2.45341476,2409.3,2409.1,28.96874685]
[1751401239975,3.28343476,2409.3,2409.2,0.83003]
[1751401242176,3.28343476,2409.3,2409.2,1.59893]
[1751401243278,0.83002,2409.3,2409.2,1.59893]
[1751401244474,3.28337476,2409.5,2409.4,0.82996]
[1751401244680,3.28337476,2409.5,2409.4,29.78970685]
[1751401245272,3.28337476,2409.5,2409.4,28.95974685]
[1751401245574,0.82996,2409.5,2409.4,28.95974685]
[1751401245775,0.82996,2409.5,2409.4,32.28004685]
[1751401246279,0.82996,2409.5,2409.4,33.11000685]
[1751401247169,2.45341476,2409.7,2409.6,0.82989]
[1751401247371,0.82986,2409.7,2409.6,3.92061685]
[1751401247579,0.82983,2409.8,2409.7,0.82984]
[1751401247781,0.82981,2409.9,2409.8,0.82982]
[1751401248279,0.82978,2410.0,2409.9,0.82976]
[1751401248577,0.82975,2410.1,2410.0,0.82972]
[1751401249079,0.82975,2410.1,2410.0,3.92046685]
[1751401249378,0.8297,2410.2,2410.1,0.82968]
[1751401249575,0.8297,2410.2,2410.1,26.68968]
[1751401249973,0.8297,2410.2,2410.1,25.86]
[1751401250277,0.8297,2410.2,2410.1,26.68972]
[1751401250477,2.03702312,2410.2,2410.1,26.68972]
[1751401250678,2.03702312,2410.2,2410.1,25.86]
[1751401250877,2.03702312,2410.2,2410.1,26.68972]
[1751401251477,2.03702312,2410.2,2410.1,25.86]
[1751401251982,2.03702312,2410.2,2410.1,26.68972]
[1751401252183,1.20732312,2410.2,2410.1,38.70972]
[1751401252385,2.07389,2410.6,2410.3,0.82963]
[1751401252573,0.82965,2410.3,2410.2,12.02]
[1751401252778,0.82965,2410.3,2410.2,37.873]
[1751401252980,2.03073071,2410.3,2410.2,37.873]
[1751401253283,0.82965,2410.3,2410.2,41.79343685]
[1751401253582,0.82965,2410.3,2410.2,40.96374685]
[1751401253779,0.82965,2410.3,2410.2,41.79343685]
[1751401254181,0.82975,2410.1,2410.0,0.82972]
[1751401254381,0.82975,2410.1,2410.0,38.69872]
[1751401254584,0.82961,2410.5,2410.4,0.82959]
[1751401254784,0.82956,2410.6,2410.5,0.82958]
[1751401254984,0.82956,2410.6,2410.5,3.92032685]
[1751401255781,0.82956,2410.6,2410.5,3.09074685]
[1751401256579,0.82958,2410.5,2410.4,26.5495]
[1751401256980,0.82956,2410.6,2410.5,0.82958]
[1751401257575,0.82956,2410.6,2410.5,1.56278]
[1751401259480,0.82956,2410.6,2410.5,4.65352685]
[1751401260288,0.82956,2410.6,2410.5,16.67152685]
[1751401263492,0.82956,2410.6,2410.5,15.84194685]
[1751401263789,0.82956,2410.6,2410.5,16.67152685]
[1751401264091,0.82956,2410.6,2410.5,4.65352685]
[1751401264393,0.82956,2410.6,2410.5,42.50052685]
[1751401264891,0.82956,2410.6,2410.5,0.7332]
[1751401265190,0.82956,2410.6,2410.5,37.843]
[1751401266191,0.82956,2410.6,2410.5,41.76332685]
[1751401269386,0.82962,2410.4,2410.3,1.3537]
[1751401269592,0.82962,2410.4,2410.3,37.837]
[1751401269792,0.8296,2410.6,2410.3,38.66665]
[1751401269992,0.8296,2410.6,2410.5,0.82955]
[1751401270193,0.8296,2410.6,2410.5,26.64855]
[1751401270585,0.8296,2410.6,2410.5,26.5089]
[1751401270790,0.8296,2410.6,2410.5,27.33848]
[1751401271592,0.8296,2410.6,2410.5,26.5089]
[1751401271795,0.8296,2410.6,2410.5,27.33848]
[1751401272789,0.82958,2410.5,2410.4,1.53689]
[1751401272991,0.82958,2410.5,2410.4,39.36789]
[1751401273288,0.82962,2410.4,2410.3,1.52053]
[1751401273495,0.82962,2410.4,2410.3,39.34953]
[1751401274094,0.82961,2410.6,2410.5,0.82955]
[1751401274394,0.82961,2410.6,2410.5,26.64155]
[1751401274594,0.82961,2410.6,2410.5,25.812]
[1751401276895,11.35661535,2410.6,2410.2,0.7098]
[1751401277094,0.82972,2410.1,2409.9,12.015]
[1751401277295,0.82972,2410.1,2410.0,85.577]
[1751401277493,0.82972,2410.1,2410.0,86.40675]
[1751401277691,0.82972,2410.1,2410.0,86.8942]
[1751401277894,0.82972,2410.1,2410.0,85.577]
[1751401278089,2.02198299,2410.1,2410.0,59.77]
[1751401278286,2.02198299,2410.1,2410.0,71.766]
[1751401278496,2.02198299,2410.1,2410.0,97.571]
[1751401279196,2.02198299,2410.1,2410.0,59.77]
[1751401279394,2.02198299,2410.1,2410.0,97.572]
[1751401279697,2.02198299,2410.1,2410.0,71.767]
[1751401279990,2.02198299,2410.1,2410.0,97.572]
[1751401280186,2.02198299,2410.1,2410.0,59.77]
[1751401280592,2.02198299,2410.1,2410.0,85.574]
[1751401283398,2.02198299,2410.1,2410.0,58.91419]
[1751401283798,4.16388299,2410.1,2410.0,58.91419]
[1751401283997,0.82979,2409.9,2409.8,12.7266]
[1751401284298,5.11279984,2409.9,2409.8,37.797]
[1751401284698,0.82989,2409.6,2409.5,0.7101]
[1751401284901,0.82989,2409.6,2409.5,39.8653]
[1751401285295,0.82989,2409.6,2409.5,42.95604685]
[1751401285695,0.82989,2409.6,2409.5,0.7101]
[1751401285898,2.02305224,2409.6,2409.5,11.998]
[1751401286294,0.82996,2409.4,2409.3,59.755]
[1751401286598,0.82996,2409.4,2409.3,85.554]
[1751401287998,0.82996,2409.4,2409.3,86.9595]
[1751401290098,0.82996,2409.4,2409.3,59.755]
[1751401290305,0.83,2409.3,2409.2,0.7275]
[1751401290604,0.83006,2409.1,2409.0,12.74]
[1751401290800,0.83006,2409.1,2409.0,38.537]
[1751401291002,0.83006,2409.1,2409.0,39.9614]
[1751401291699,0.83006,2409.1,2409.0,0.741]
[1751401291905,0.8302,2408.7,2408.6,62.85574685]
[1751401292100,0.8302,2408.7,2408.6,100.65074685]
[1751401292300,0.8302,2408.7,2408.6,62.85574685]
[1751401292506,0.8302,2408.7,2408.6,97.559]
[1751401293007,0.83027,2408.5,2408.4,12.0]
[1751401293208,0.83027,2408.5,2408.4,37.794]
[1751401293702,0.83027,2408.5,2408.4,37.793]
[1751401295911,0.83027,2408.5,2408.4,12.0]
[1751401296109,0.83027,2408.5,2408.4,37.793]
[1751401298808,0.83027,2408.5,2408.4,0.7418]
[1751401299108,0.83027,2408.5,2408.4,26.5358]
[1751401304129,0.83027,2408.5,2408.4,32.46915649]
[1751401304626,0.83027,2408.5,2408.4,33.90285649]
[1751401306126,0.83027,2408.5,2408.4,27.9695]
[1751401306432,0.83027,2408.5,2408.4,12.7468]
[1751401306726,0.83031,2408.4,2408.3,29.1078]
[1751401307030,0.83034,2408.3,2408.2,25.786]
[1751401307328,0.83034,2408.3,2408.0,12.7288]
[1751401307329,0.83041,2408.1,2408.0,12.7288]
[1751401307528,0.83041,2408.1,2408.0,38.5148]
[1751401307723,0.83041,2408.1,2408.0,12.7288]
[1751401307923,0.83041,2408.1,2408.0,38.5138]
[1751401312422,0.83041,2408.1,2408.0,37.79]
[1751401312631,0.83041,2408.1,2408.0,38.4785]
[1751401314734,0.83041,2408.1,2408.0,39.30894]
[1751401315625,0.83039,2408.3,2408.2,0.83034]
[1751401315831,0.83039,2408.3,2408.2,29.69991724]
[1751401316039,0.83032,2408.5,2408.4,0.83027]
[1751401316237,0.83032,2408.5,2408.4,29.69884724]
[1751401316437,0.83024,2408.7,2408.6,0.8302]
[1751401316638,2.04038939,2408.7,2408.6,40.85657724]
[1751401316838,2.04038939,2408.7,2408.6,41.68681724]
[1751401317136,2.04038939,2408.7,2408.6,40.85657724]
[1751401324643,2.04038939,2408.7,2408.6,42.30927724]
[1751401325140,2.04038939,2408.7,2408.6,43.05887724]
[1751401325341,0.83024,2408.7,2408.6,43.05887724]
[1751401325738,2.04225186,2408.7,2408.6,43.05887724]
[1751401326244,0.83024,2408.7,2408.6,43.05887724]
[1751401328538,0.83024,2408.7,2408.6,42.30927724]
[1751401328738,0.83024,2408.7,2408.6,43.03547724]
[1751401330043,0.83024,2408.7,2408.6,43.86571724]
[1751401330244,0.83024,2408.7,2408.6,43.13951724]
[1751401330446,0.8302,2408.8,2408.7,0.83015]
[1751401330641,0.8302,2408.8,2408.7,2.17025]
[1751401333848,0.8302,2408.8,2408.7,2.89805]
[1751401335541,0.8302,2408.8,2408.7,2.0679]
[1751401336450,0.8302,2408.8,2408.7,2.8981]
[1751401337248,0.8302,2408.8,2408.7,2.0679]
[1751401337450,0.8302,2408.8,2408.7,2.8981]
[1751401342243,0.8302,2408.8,2408.7,0.7278]
[1751401342550,0.8302,2408.8,2408.7,38.4278]
[1751401344352,0.8302,2408.8,2408.7,39.258]
[1751401344646,0.8302,2408.7,2408.6,3.92078724]
[1751401344845,0.8302,2408.7,2408.6,41.61678724]
[1751401345855,0.8302,2408.7,2408.6,40.78657724]
[1751401346354,0.8302,2408.7,2408.6,41.61681724]
[1751401346954,0.8302,2408.7,2408.6,0.83024]
[1751401347158,0.8302,2408.7,2408.6,41.61381724]
[1751401347651,0.8302,2408.7,2408.6,42.32591724]
[1751401348455,0.83024,2408.6,2408.5,59.791]
[1751401348654,2.0442468,2408.6,2408.5,71.756]
[1751401348851,2.0442468,2408.6,2408.5,97.482]
[1751401349054,2.0442468,2408.6,2408.5,59.791]
[1751401349255,3.4353468,2408.6,2408.5,85.516]
[1751401349458,3.4353468,2408.6,2408.5,59.791]
[1751401349761,8.4353468,2408.6,2408.5,85.515]
[1751401350655,0.83027,2408.5,2408.4,11.965]
[1751401350856,5.33134724,2408.5,2408.4,37.688]
[1751401351562,6.54509855,2408.5,2408.4,37.688]
[1751401353655,3.45452131,2408.5,2408.4,37.688]
[1751401353858,0.83027,2408.5,2408.4,37.688]
[1751401354064,0.83027,2408.5,2408.4,38.51831]
[1751401354363,0.83026,2408.6,2408.5,0.83022]
[1751401354662,0.83026,2408.6,2408.5,3.92079724]
[1751401354861,2.04338986,2408.6,2408.5,3.92079724]
[1751401355265,1.21312986,2408.6,2408.5,3.92079724]
[1751401355662,1.21312986,2408.6,2408.5,5.31179724]
[1751401356560,0.83023,2408.7,2408.6,0.83024]
[1751401356765,0.83019,2408.8,2408.7,0.83016]
[1751401356961,0.83019,2408.8,2408.7,3.92073724]
[1751401357168,2.04348081,2408.8,2408.7,3.92073724]
[1751401357862,2.04346081,2408.8,2408.7,3.92073724]
[1751401358264,0.83012,2409.0,2408.9,0.83013]
[1751401358562,2.04347255,2409.0,2408.9,41.60467724]
[1751401359464,1.21337255,2409.0,2408.9,41.60467724]
[1751401359660,1.21337255,2409.0,2408.9,42.97997724]
[1751401359863,1.21337255,2409.0,2406.5,9.814]
[1751401360166,0.83079,2407.0,2406.9,1.75774141]
[1751401360366,2.07715,2406.8,2405.5,0.713]
[1751401360562,0.33291447,2406.8,2405.8,3.09057724]
[1751401360761,0.83117,2405.9,2405.8,3.09057724]
[1751401360969,0.83117,2405.9,2405.8,15.80929166]
[1751401361468,0.83117,2405.9,2405.8,42.43129166]
[1751401361772,0.83117,2405.9,2405.8,54.73229166]
[1751401361966,0.83117,2405.9,2405.8,41.05199166]
[1751401362272,0.83117,2405.9,2405.8,41.04799166]
[1751401363171,0.83117,2405.9,2405.8,26.614]
[1751401380080,2.07765,2406.3,2405.8,41.04799166]
[1751401380282,0.83112,2406.1,2406.0,0.83109]
[1751401380483,0.83112,2406.1,2406.0,27.7553]
[1751401380783,0.83112,2406.1,2406.0,42.18929166]
[1751401381180,0.83112,2406.1,2406.0,14.43399166]
[1751401381386,0.8312,2405.8,2405.7,12.314]
[1751401381684,0.8312,2405.8,2405.7,53.15799166]
[1751401385190,2.33154941,2405.8,2405.7,53.15799166]
[1751401385390,2.33154941,2405.8,2405.7,54.53079166]
[1751401386992,2.33154941,2405.8,2405.7,53.15799166]
[1751401388286,2.33154941,2405.8,2405.7,14.43399166]
[1751401388488,2.33154941,2405.8,2405.7,53.09399166]
[1751401389791,5.42869368,2405.8,2405.7,53.09399166]
[1751401390393,8.71871047,2405.8,2405.7,53.09399166]
[1751401390592,8.71871047,2405.8,2405.7,38.66]
[1751401390792,8.71871047,2405.8,2405.7,38.636]
[1751401391194,5.42869368,2405.8,2405.7,38.636]
[1751401391889,2.33154941,2405.8,2405.7,38.636]
[1751401392188,2.33154941,2405.8,2405.7,53.90123166]
[1751401392390,2.33154941,2405.8,2405.7,52.79412341]
[1751401392893,5.60959678,2405.8,2405.7,52.79412341]
[1751401393085,4.77839678,2405.8,2405.7,52.79412341]
[1751401393286,1.50034941,2405.8,2405.7,55.89126768]
[1751401393492,1.50034941,2405.8,2405.7,52.15017287]
[1751401393989,1.50034941,2405.8,2405.7,52.0530286]
[1751401394993,2.33154941,2405.8,2405.7,52.0530286]
[1751401395491,0.8312,2405.8,2405.7,18.82109166]
[1751401395690,0.8312,2405.8,2405.7,57.35409166]
[1751401395997,0.8312,2405.8,2405.7,42.9201]
[1751401396195,0.8312,2405.8,2405.7,41.513]
[1751401396696,0.8312,2405.8,2405.7,3.0]
[1751401396892,0.8312,2405.8,2405.7,29.28]
[1751401398295,0.8312,2405.8,2405.7,3.0]
[1751401398494,0.8312,2405.8,2405.7,29.279]
[1751401398896,0.8312,2405.8,2405.7,3.0]
[1751401399100,0.8312,2405.8,2405.7,29.263]
[1751401400594,0.8312,2405.8,2405.7,3.0]
[1751401400796,0.8312,2405.8,2405.7,29.257]
[1751401401091,0.8312,2405.8,2405.7,3.0]
[1751401401295,0.83124,2405.7,2405.6,12.239]
[1751401401497,0.83124,2405.7,2405.6,38.471]
[1751401401696,0.83124,2405.7,2405.6,38.469]
[1751401404001,0.83124,2405.7,2405.6,38.458]
[1751401404602,2.16173575,2405.7,2405.6,38.458]
[1751401405097,2.16173575,2405.7,2405.6,52.89199166]
[1751401405295,4.62528874,2405.7,2405.6,52.89199166]
[1751401405494,2.16173575,2405.7,2405.6,54.99209166]
[1751401405693,2.16173575,2405.7,2405.6,53.60739166]
[1751401406902,1.33049575,2405.7,2405.6,54.43866166]
[1751401407402,2.16173575,2405.7,2405.6,54.43866166]
[1751401407603,2.16173575,2405.7,2405.6,95.23866166]
[1751401409898,1.33049575,2405.7,2405.6,95.23866166]
[1751401410100,1.33049575,2405.7,2405.6,96.59626166]
[1751401410399,2.16173575,2405.7,2405.6,96.59626166]
[1751401411099,1.33049575,2405.7,2405.6,96.59626166]
[1751401411893,2.16173575,2405.7,2405.6,96.54026166]
[1751401412602,2.16173575,2405.7,2405.6,95.18266166]
[1751401413199,2.16173575,2405.7,2405.6,94.35139166]
[1751401413499,2.16173575,2405.7,2405.6,53.53439166]
[1751401413700,2.16173575,2405.7,2405.6,54.36566166]
[1751401414200,2.16173575,2405.7,2405.6,53.53439166]
[1751401414801,2.16173575,2405.7,2405.6,54.36566166]
[1751401415202,1.33049575,2405.7,2405.6,55.15276166]
[1751401415403,0.83121,2405.8,2405.7,0.83124]
[1751401415803,2.00317405,2405.8,2405.7,0.83124]
[1751401416004,1.17196405,2405.8,2405.7,0.83124]
[1751401416401,2.00316405,2405.8,2405.7,0.83124]
[1751401416705,1.17196405,2405.8,2405.7,0.83124]
[1751401416907,1.17196405,2405.8,2405.7,15.26523166]
[1751401417102,0.8312,2405.9,2405.8,0.8312]
[1751401417398,2.00301921,2405.9,2405.8,26.9472]
[1751401419506,1.17181921,2405.9,2405.8,26.9472]
[1751401419711,2.00298921,2405.9,2405.8,28.2804]
[1751401419900,1.17181921,2405.9,2405.8,28.2804]
[1751401420507,2.00298921,2405.9,2405.8,28.2804]
[1751401420703,1.17181921,2405.9,2405.8,28.2804]
[1751401421006,1.17181921,2405.9,2405.8,42.71439166]
[1751401421203,2.00298921,2405.9,2405.8,42.71439166]
[1751401421404,0.83117,2405.9,2405.8,42.71439166]
[1751401423108,0.83116,2406.0,2405.9,0.83114]
[1751401423308,2.00358764,2406.0,2405.9,26.87714]
[1751401426710,2.00358764,2406.0,2405.9,26.046]
[1751401427305,0.83121,2405.8,2405.7,1.55172]
[1751401427610,0.83121,2405.8,2405.7,54.10971166]
[1751401428500,3.92756431,2405.9,2405.8,0.83121]
[1751401429008,0.83119,2405.9,2405.8,0.83121]
[1751401433011,0.83119,2405.9,2405.8,26.80321]
[1751401436215,2.0041575,2405.9,2405.8,26.80321]
[1751401436611,2.0041575,2405.9,2405.8,30.12841]
[1751401438016,5.10053181,2405.9,2405.8,3.3252]
[1751401438617,6.53253181,2405.9,2405.8,3.3252]
[1751401439511,1.1729675,2405.9,2405.8,4.1564]
[1751401439714,1.1729675,2405.9,2405.8,19.36099166]
[1751401439915,1.1729675,2405.9,2405.8,23.78596597]
[1751401440115,0.42371682,2406.2,2406.1,0.8311]
[1751401440321,2.00416917,2406.2,2406.1,26.7551]
[1751401441012,1.17309917,2406.2,2406.1,26.7551]
[1751401441212,0.83106,2406.3,2406.2,0.83106]
[1751401441518,2.41145821,2406.3,2406.2,0.83106]
[1751401442425,0.83107,2406.2,2406.1,26.75507]
[1751401442725,2.00437798,2406.2,2406.1,26.75507]
[1751401443220,2.00437798,2406.2,2406.1,25.924]
[1751401443642,0.8311,2406.1,2406.0,1.55001]
[1751401443822,2.00440798,2406.1,2406.0,41.88300166]
[1751401444022,2.00440798,2406.1,2406.0,41.16410166]
[1751401444224,1.17330798,2406.1,2406.0,41.16410166]
[1751401444527,2.00440798,2406.1,2406.0,41.16410166]
[1751401445629,2.00440798,2406.1,2406.0,41.16413166]
[1751401445821,1.17330798,2406.1,2406.0,41.16413166]
[1751401446021,1.23817135,2406.3,2406.2,0.83107]
[1751401446222,2.42482656,2406.3,2406.2,25.88]
[1751401446422,2.42482656,2406.3,2406.2,26.71107]
[1751401446721,0.83107,2406.2,2406.1,0.83107]
[1751401447024,2.01772521,2406.2,2406.1,26.71107]
[1751401447225,2.01772521,2406.2,2406.1,41.14506166]
[1751401447728,1.18665521,2406.2,2406.1,41.14506166]
[1751401448826,1.18665521,2406.2,2406.1,41.87906166]
[1751401449223,0.40711135,2406.3,2406.2,0.83107]
[1751401449424,1.18612438,2406.4,2406.3,0.83103]
[1751401449722,2.01701045,2406.4,2406.3,26.69001]
[1751401449924,1.18601045,2406.4,2406.3,41.12400166]
[1751401450327,1.18601045,2406.4,2406.3,43.24010166]
[1751401451327,0.83086,2406.8,2406.7,0.83089]
[1751401451522,0.83086,2406.8,2406.7,26.68789]
[1751401451921,0.83084,2406.9,2406.8,0.83084]
[1751401452122,0.83086,2406.8,2406.7,26.68787]
[1751401452626,0.83085,2406.9,2406.8,0.83085]
[1751401452825,1.24820941,2406.9,2406.8,0.83085]
[1751401456924,0.41735941,2406.9,2406.8,0.83085]
[1751401457222,0.8308,2407.0,2406.9,0.83082]
[1751401459025,0.8308,2407.0,2406.9,26.68182]
[1751401460532,1.25504368,2407.0,2406.9,26.68182]
[1751401461134,1.25504368,2407.0,2406.9,25.851]
[1751401461433,1.25504368,2407.0,2406.9,26.68182]
[1751401461931,1.25504368,2407.0,2406.9,25.851]
[1751401462131,1.25504368,2407.0,2406.9,26.68182]
[1751401463436,2.43132831,2407.0,2406.9,26.68182]
[1751401463839,1.60052831,2407.0,2406.9,26.68182]
[1751401464135,2.43131831,2407.0,2406.9,26.68182]
[1751401464331,1.60052831,2407.0,2406.9,26.68182]
[1751401464533,1.60052831,2407.0,2406.9,41.11581166]
[1751401465133,0.42424368,2407.0,2406.9,41.11581166]
[1751401465340,0.83078,2407.1,2407.0,0.83079]
[1751401465638,0.83079,2407.0,2406.9,25.851]
[1751401465838,3.92716431,2407.0,2406.9,25.851]
[1751401466039,3.92716431,2407.0,2406.9,26.68183]
[1751401469135,3.09637431,2407.0,2406.9,26.68183]
[1751401469334,4.68197397,2407.0,2406.9,26.68183]
[1751401469731,5.51276397,2407.0,2406.9,26.68183]
[1751401470141,5.51258925,2407.0,2406.9,26.68183]
[1751401470943,2.41621494,2407.0,2406.9,26.68183]
[1751401473941,2.41621494,2407.0,2406.9,25.851]
[1751401474743,0.83082,2406.9,2406.8,1.60613]
[1751401474942,0.83082,2406.9,2406.8,53.90012166]
[1751401475333,0.83082,2406.9,2406.7,12.84688]
[1751401475334,0.83089,2406.8,2406.7,12.84688]
[1751401475540,0.83085,2406.9,2406.8,0.83084]
[1751401475734,2.00707798,2406.9,2406.8,0.83084]
[1751401476250,2.00707798,2406.9,2406.8,1.60804]
[1751401478446,1.17622798,2406.9,2406.8,1.60804]
[1751401478750,0.40890864,2407.0,2406.9,0.83082]
[1751401478951,1.17750536,2407.0,2406.9,0.83082]
[1751401479249,1.17750536,2407.0,2406.9,16.66941166]
[1751401479551,2.00829536,2407.0,2406.9,15.26481166]
[1751401480150,2.43365664,2407.0,2406.9,15.26481166]